bitfinex-derivatives/quotes_SOLF0:USTF0_20260127
["timestamp","ask_amount","ask_price","bid_price","bid_amount"]
[1769535934619,319.78450642,123.69,123.59,14.70835243]
[1769535934818,14.80126356,123.68,123.59,14.70835243]
[1769535935023,14.80126356,123.68,123.57,14.70835243]
[1769535935024,14.80126356,123.66,123.57,14.70835243]
[1769535935224,22.08776356,123.66,123.57,14.70835243]
[1769535936027,7.2854,123.68,123.58,14.70835243]
[1769535936725,14.80126356,123.67,123.58,14.70835243]
[1769535936919,14.80126356,123.66,123.58,14.70835243]
[1769535938014,7.2871,123.65,123.58,14.70835243]
[1769535938216,447.90866998,123.69,123.58,14.70835243]
[1769535938725,21.78525137,123.68,123.58,14.70835243]
[1769535938925,7.2859,123.67,123.58,21.99925243]
[1769535939527,14.80126356,123.68,123.6,14.70835243]
[1769535940729,22.08656356,123.68,123.6,21.99805243]
[1769535940934,22.08656356,123.68,123.61,14.70835243]
[1769535941625,7.2858,123.67,123.61,14.70835243]
[1769535941829,7.2858,123.67,123.58,26.3664125]
[1769535942228,7.2858,123.67,123.59,14.70835243]
[1769535942421,7.2858,123.67,123.6,14.70835243]
[1769535942619,14.80126356,123.68,123.6,14.70835243]
[1769535943026,14.80126356,123.68,123.61,14.70835243]
[1769535943227,327.06930642,123.69,123.61,14.70835243]
[1769535943426,7.2848,123.69,123.61,14.70835243]
[1769535943930,6.84171071,123.68,123.61,14.70835243]
[1769535944625,7.2848,123.69,123.61,14.70835243]
[1769535944825,6.83491643,123.68,123.61,14.70835243]
[1769535945030,7.2848,123.69,123.61,21.99755243]
[1769535946233,390.31196007,123.73,123.61,21.99755243]
[1769535946234,113.2845,123.73,123.63,14.70835243]
[1769535946531,14.80126356,123.71,123.63,14.70835243]
[1769535946722,7.2846,123.69,123.63,14.70835243]
[1769535947127,7.2846,123.69,123.61,4.36746007]
[1769535947128,14.80126356,123.71,123.6,14.70835243]
[1769535947329,14.80126356,123.7,123.61,14.70835243]
[1769535949028,7.2847,123.69,123.62,7.2885]
[1769535949231,14.80126356,123.7,123.62,14.70835243]
[1769535949428,14.80126356,123.72,123.62,14.70835243]
[1769535949628,22.08516356,123.71,123.63,7.288]
[1769535950023,14.80126356,123.71,123.63,7.288]
[1769535950220,14.80126356,123.71,123.62,14.70835243]
[1769535951627,7.2848,123.69,123.62,14.70835243]
[1769535952537,22.08516356,123.71,123.63,14.70835243]
[1769535952934,7.2828,123.72,123.65,7.2869]
[1769535953239,14.80126356,123.77,123.68,14.70835243]
[1769535953439,7.2805,123.76,123.69,21.99295243]
[1769535953630,14.80126356,123.77,123.69,21.99295243]
[1769535954127,7.2806,123.76,123.69,14.70835243]
[1769535954333,15.50784579,123.79,123.69,14.70835243]
[1769535954534,15.50784579,123.79,123.6,32.341]
[1769535954838,271.68,123.85,123.6,15.77801108]
[1769535954839,133.18590586,123.7,123.6,15.77801108]
[1769535955029,15.50784579,123.7,123.6,15.77801108]
[1769535955425,15.50784579,123.69,123.6,15.77801108]
[1769535957936,15.50784579,123.68,123.6,15.77801108]
[1769535961438,117.66796007,123.71,123.6,15.77801108]
[1769535961439,27.15900586,123.71,123.6,15.77801108]
[1769535961639,7.2837,123.71,123.6,15.77801108]
[1769535962742,22.79044579,123.73,123.62,15.77801108]
[1769535962942,15.50784579,123.73,123.63,15.77801108]
[1769535963846,22.78964579,123.74,123.64,15.77801108]
[1769535964044,15.50784579,123.74,123.64,15.77801108]
[1769535964237,7.2824,123.73,123.64,15.77801108]
[1769535964645,15.50784579,123.72,123.62,322.9]
[1769535964947,15.50784579,123.72,123.62,338.67801108]
[1769535965748,15.50784579,123.7,123.59,15.77801108]
[1769535966952,7.2853,123.68,123.59,15.77801108]
[1769535967164,15.50784579,123.7,123.59,15.77801108]
[1769535967654,128.79414579,123.73,123.61,15.77801108]
[1769535968164,15.50784579,123.72,123.61,15.77801108]
[1769535968451,15.50784579,123.72,123.62,15.77801108]
[1769535968452,7.2835,123.71,123.62,15.77801108]
[1769535968753,22.79134579,123.71,123.62,15.77801108]
[1769535969349,113.2863,123.73,123.62,15.77801108]
[1769535969350,15.50784579,123.69,123.62,15.77801108]
[1769535970049,15.50784579,123.69,123.62,23.06651108]
[1769535970246,15.50784579,123.69,123.62,15.77801108]
[1769535971955,15.50784579,123.69,123.62,23.06671108]
[1769535972360,7.284,123.7,123.62,23.06671108]
[1769535972746,19.87530586,123.71,123.63,7.2881]
[1769535973252,15.50784579,123.7,123.62,15.77801108]
[1769535973448,15.50784579,123.7,123.62,23.06651108]
[1769535974757,22.79314579,123.68,123.59,15.77801108]
[1769535975058,15.50784579,123.68,123.59,15.77801108]
[1769535975258,7.2844,123.7,123.61,15.77801108]
[1769535975460,15.50784579,123.71,123.62,15.77801108]
[1769535975859,15.50784579,123.71,123.65,7.2868]
[1769535976256,15.50784579,123.71,123.61,15.77801108]
[1769535976560,15.50784579,123.7,123.62,7.2882]
[1769535976961,7.2847,123.69,123.61,15.77801108]
[1769535977454,7.2847,123.69,123.61,23.06671108]
[1769535977661,15.50784579,123.73,123.62,15.77801108]
[1769535977861,15.50784579,123.73,123.63,15.77801108]
[1769535978162,15.50784579,123.73,123.66,23.06431108]
[1769535979054,7.2819,123.74,123.66,23.06431108]
[1769535979352,19.87530586,123.75,123.67,7.2857]
[1769535979558,15.50784579,123.75,123.67,15.77801108]
[1769535981068,15.50784579,123.75,123.68,23.06311108]
[1769535981251,19.87530586,123.78,123.68,15.77801108]
[1769535981459,15.50784579,123.8,123.7,15.77801108]
[1769535981958,22.78624579,123.8,123.72,23.06071108]
[1769535982269,15.50784579,123.8,123.72,23.06071108]
[1769535983157,22.78614579,123.8,123.72,15.77801108]
[1769535983665,14.81491187,123.79,123.71,7.2832]
[1769535983860,14.81491187,123.79,123.71,21.56482391]
[1769535984663,15.4846482,123.78,123.71,14.28162391]
[1769535985664,22.7640482,123.78,123.71,14.28162391]
[1769535985972,15.4846482,123.78,123.7,7.2839]
[1769535986167,15.4846482,123.78,123.68,345.27898801]
[1769535986168,19.85210827,123.78,123.68,345.27898801]
[1769535986366,15.4846482,123.77,123.68,345.27898801]
[1769535986666,15.4846482,123.77,123.69,22.45858801]
[1769535986864,15.4846482,123.8,123.69,15.17418801]
[1769535987959,22.7638482,123.79,123.71,7.2832]
[1769535988460,15.4846482,123.78,123.69,15.17418801]
[1769535988771,15.4846482,123.77,123.69,22.45818801]
[1769535988963,15.4846482,123.77,123.66,15.17418801]
[1769535989861,7.2806,123.76,123.67,7.2852]
[1769535990067,15.4846482,123.77,123.68,15.17418801]
[1769535990371,15.4846482,123.8,123.69,15.17418801]
[1769535990568,15.4846482,123.8,123.72,15.17418801]
[1769535991771,15.4846482,123.83,123.73,15.17418801]
[1769535992967,7.2775,123.81,123.74,15.17418801]
[1769535993670,7.2775,123.81,123.74,22.45578801]
[1769535993867,22.7615482,123.83,123.74,15.17418801]
[1769535994073,15.4846482,123.83,123.74,15.17418801]
[1769535994472,16.89059519,123.86,123.74,15.17418801]
[1769535994776,16.89059519,123.86,123.75,15.17418801]
[1769535994975,7.2758,123.84,123.76,22.45438801]
[1769535995273,15.4846482,123.83,123.73,15.17418801]
[1769535995476,15.4846482,123.83,123.74,15.17418801]
[1769535996575,15.4846482,123.82,123.74,15.17418801]
[1769535997568,22.7620482,123.82,123.74,15.17418801]
[1769535997772,15.4846482,123.82,123.72,22.45688801]
[1769535998073,15.4846482,123.8,123.72,15.17418801]
[1769535998275,15.4846482,123.83,123.72,15.17418801]
[1769535999975,15.4846482,123.83,123.75,15.17418801]
[1769536000675,15.4846482,123.83,123.76,7.2803]
[1769536003177,11.63309129,123.84,123.76,7.2803]
[1769536003178,22.7596482,123.86,123.78,15.17418801]
[1769536003570,15.4846482,123.86,123.78,15.17418801]
[1769536003875,22.7605482,123.84,123.77,7.2794]
[1769536004072,15.4846482,123.84,123.75,15.17418801]
[1769536004471,22.7617482,123.82,123.73,322.62]
[1769536004678,22.7617482,123.82,123.73,15.17418801]
[1769536004879,15.4846482,123.81,123.73,15.17418801]
[1769536005081,15.4846482,123.81,123.7,15.17418801]
[1769536005475,15.4846482,123.77,123.68,7.2847]
[1769536005685,15.4846482,123.77,123.68,15.17418801]
[1769536005981,19.84193949,123.8,123.68,15.17418801]
[1769536006279,15.4846482,123.8,123.71,15.17418801]
[1769536006882,22.7627482,123.8,123.71,22.45748801]
[1769536007082,22.7627482,123.8,123.72,15.17418801]
[1769536007280,15.4846482,123.8,123.72,15.17418801]
[1769536007481,7.2787,123.79,123.72,15.17418801]
[1769536007681,15.4846482,123.8,123.69,22.45818801]
[1769536007876,15.4846482,123.8,123.7,15.17418801]
[1769536008572,7.2799,123.77,123.7,15.17418801]
[1769536008777,7.2799,123.77,123.68,4.35729129]
[1769536008778,15.4846482,123.77,123.68,15.17418801]
[1769536009178,15.4846482,123.77,123.69,15.17418801]
[1769536010477,15.4846482,123.77,123.69,22.45838801]
[1769536010677,22.7632482,123.8,123.7,15.17418801]
[1769536011995,22.7632482,123.8,123.71,22.45748801]
[1769536012285,22.7632482,123.8,123.72,15.17418801]
[1769536012685,15.4846482,123.8,123.73,7.2822]
[1769536012881,15.4846482,123.8,123.69,15.17418801]
[1769536013882,22.7642482,123.78,123.7,7.2839]
[1769536014083,22.7642482,123.78,123.7,22.45808801]
[1769536014884,14.89499947,123.76,123.68,348.43237945]
[1769536015083,14.89499947,123.76,123.68,344.07508816]
[1769536015384,14.89499947,123.76,123.68,336.79048816]
[1769536015589,22.17559947,123.76,123.68,336.79048816]
[1769536015891,117.58469129,123.79,123.68,322.64]
[1769536015892,14.89499947,123.75,123.68,322.64]
[1769536016478,14.89499947,123.75,123.67,7.2852]
[1769536017289,14.89499947,123.75,123.65,14.15048816]
[1769536018886,22.17739947,123.73,123.65,14.15048816]
[1769536019083,14.89499947,123.73,123.65,14.15048816]
[1769536019985,22.17789947,123.72,123.65,21.43728816]
[1769536020384,14.89499947,123.71,123.64,322.64]
[1769536020685,14.89499947,123.71,123.62,14.15048816]
[1769536021091,14.89499947,123.71,123.64,7.2875]
[1769536021280,14.89499947,123.71,123.62,14.15048816]
[1769536022999,22.17839947,123.71,123.63,7.2881]
[1769536023894,14.89499947,123.7,123.63,7.2881]
[1769536024190,22.17899947,123.7,123.62,21.43918816]
[1769536025392,14.89499947,123.69,123.62,21.43918816]
[1769536027295,14.89499947,123.68,123.61,7.2893]
[1769536027597,14.89499947,123.68,123.6,336.83048816]
[1769536028887,7.2858,123.67,123.6,344.12008816]
[1769536029086,14.89499947,123.68,123.6,344.12008816]
[1769536029288,14.89499947,123.68,123.61,14.15048816]
[1769536030098,22.18019947,123.68,123.61,21.43978816]
[1769536030296,14.89499947,123.68,123.61,14.15048816]
[1769536030496,14.89499947,123.72,123.61,14.15048816]
[1769536030897,14.89499947,123.72,123.63,14.15048816]
[1769536031687,230.87429129,123.76,123.67,14.15048816]
[1769536031688,7.2817,123.74,123.67,14.15048816]
[1769536032090,14.89499947,123.75,123.67,14.15048816]
[1769536032290,14.89499947,123.75,123.65,18.50777945]
[1769536032595,22.17839947,123.71,123.63,344.25848816]
[1769536033395,22.17839947,123.71,123.64,14.15048816]
[1769536033801,14.89499947,123.7,123.63,322.82]
[1769536033987,14.89499947,123.7,123.63,336.97048816]
[1769536034501,14.89499947,123.7,123.64,7.2874]
[1769536034895,14.89499947,123.7,123.63,336.97048816]
[1769536035596,22.17739947,123.73,123.66,1.71016421]
[1769536036309,22.17739947,123.73,123.66,8.99626421]
[1769536036491,14.89499947,123.73,123.68,1.71016421]
[1769536037598,22.17599947,123.76,123.7,1.71016421]
[1769536038691,14.89499947,123.76,123.7,1.71016421]
[1769536039093,22.17549947,123.76,123.7,1.71016421]
[1769536039290,14.89499947,123.76,123.7,1.71016421]
[1769536039796,14.89499947,123.76,123.69,21.43498816]
[1769536040301,22.17559947,123.76,123.69,21.43498816]
[1769536040698,14.89499947,123.76,123.67,7.2853]
[1769536041297,14.89499947,123.76,123.67,21.43578816]
[1769536041894,7.2812,123.75,123.67,21.43578816]
[1769536042400,22.17619947,123.75,123.67,21.43578816]
[1769536045902,7.2817,123.74,123.67,21.43578816]
[1769536046102,14.89499947,123.75,123.67,14.15048816]
[1769536046307,14.89499947,123.75,123.66,14.32613436]
[1769536046803,7.2826,123.73,123.66,14.32613436]
[1769536047003,7.2826,123.73,123.66,21.61223436]
[1769536047406,22.17659947,123.75,123.66,21.61223436]
[1769536047611,22.17659947,123.75,123.67,21.61173436]
[1769536047905,14.56265395,123.74,123.67,21.61173436]
[1769536048210,113.2453,123.77,123.65,327.1392002]
[1769536048211,21.84285395,123.77,123.69,14.32613436]
[1769536048402,14.56265395,123.77,123.69,14.32613436]
[1769536049009,14.56265395,123.77,123.69,21.61063436]
[1769536049408,14.56265395,123.77,123.69,14.32613436]
[1769536049606,113.2123,123.81,123.72,14.32613436]
[1769536049607,14.56265395,123.79,123.72,14.32613436]
[1769536051013,7.2794,123.78,123.72,14.32613436]
[1769536051405,7.2794,123.78,123.72,21.60883436]
[1769536052414,14.56265395,123.79,123.73,7.2821]
[1769536052621,14.56265395,123.79,123.72,14.32613436]
[1769536052821,21.84135395,123.79,123.72,14.32613436]
[1769536053024,14.56265395,123.79,123.72,14.32613436]
[1769536053624,14.56265395,123.77,123.68,18.68533456]
[1769536053921,14.56265395,123.76,123.66,14.32613436]
[1769536055026,14.56265395,123.74,123.66,14.32613436]
[1769536055918,7.2823,123.73,123.66,14.32613436]
[1769536056829,14.56265395,123.74,123.66,14.32613436]
[1769536057024,14.56265395,123.74,123.67,14.32613436]
[1769536058027,21.84465395,123.74,123.67,14.32613436]
[1769536058726,7.2823,123.73,123.67,14.32613436]
[1769536059124,21.84495395,123.73,123.67,14.32613436]
[1769536060828,7.2828,123.72,123.67,14.32613436]
[1769536062538,14.56265395,123.75,123.67,14.32613436]
[1769536063923,21.84375395,123.75,123.67,14.32613436]
[1769536066524,21.84305395,123.77,123.68,14.32613436]
[1769536066726,14.56265395,123.79,123.7,14.32613436]
[1769536067025,14.56265395,123.82,123.7,14.32613436]
[1769536067226,21.84075395,123.81,123.73,14.32613436]
[1769536068727,21.84075395,123.81,123.73,21.60833436]
[1769536068927,14.56265395,123.81,123.73,21.60833436]
[1769536069531,14.56265395,123.81,123.74,21.60773436]
[1769536071032,14.56265395,123.81,123.75,7.281]
[1769536072134,14.56265395,123.81,123.76,7.2804]
[1769536072336,21.83925395,123.83,123.76,7.2804]
[1769536073238,14.56265395,123.82,123.76,7.2804]
[1769536074134,14.56265395,123.82,123.76,21.60653436]
[1769536074836,14.56265395,123.82,123.76,14.32613436]
[1769536075842,14.56265395,123.82,123.74,21.17178032]
[1769536076034,14.56265395,123.82,123.75,13.89028032]
[1769536076644,21.83965395,123.82,123.75,13.89028032]
[1769536077140,13.90968312,123.84,123.75,13.89028032]
[1769536078040,13.90968312,123.83,123.75,13.89028032]
[1769536078940,13.90968312,123.82,123.75,21.17128032]
[1769536080043,7.2764,123.83,123.76,13.89028032]
[1769536080236,7.277,123.82,123.76,13.89028032]
[1769536080542,13.90968312,123.83,123.76,13.89028032]
[1769536080740,13.90968312,123.82,123.74,13.89028032]
[1769536081442,13.90968312,123.82,123.76,13.89028032]
[1769536081639,15.61662556,123.86,123.78,1.70694244]
[1769536081833,15.61662556,123.86,123.78,15.59722276]
[1769536082348,13.90968312,123.85,123.78,15.59722276]
[1769536082740,13.90968312,123.85,123.8,1.70694244]
[1769536082935,13.90968312,123.87,123.8,15.59722276]
[1769536083137,15.31531778,123.89,123.82,1.70694244]
[1769536083444,17.02226022,123.89,123.82,1.70694244]
[1769536084940,13.90968312,123.86,123.8,15.59722276]
[1769536085339,13.90968312,123.86,123.8,1.70694244]
[1769536085647,21.18448312,123.86,123.8,1.70694244]
[1769536086649,13.90968312,123.86,123.8,8.98504244]
[1769536086846,13.90968312,123.86,123.8,1.70694244]
[1769536087048,15.61662556,123.83,123.76,1.70694244]
[1769536087240,15.61662556,123.83,123.76,15.59722276]
[1769536087837,15.61662556,123.83,123.76,13.89028032]
[1769536088544,7.277,123.82,123.76,13.89028032]
[1769536089044,15.61662556,123.85,123.78,15.59722276]
[1769536089350,13.90968312,123.85,123.78,15.59722276]
[1769536090741,1.70694244,123.87,123.8,1.70694244]
[1769536090947,1.70694244,123.87,123.8,15.59722276]
[1769536091353,13.90968312,123.88,123.81,7.2774]
[1769536091838,7.2741,123.87,123.8,15.59722276]
[1769536092150,22.89072556,123.87,123.8,15.59722276]
[1769536093448,15.61662556,123.87,123.8,22.87522276]
[1769536094144,13.90968312,123.89,123.82,13.89028032]
[1769536094350,15.61662556,123.88,123.8,15.59722276]
[1769536094645,22.89072556,123.87,123.8,13.89028032]
[1769536094845,15.61662556,123.84,123.77,15.59722276]
[1769536095147,1.70694244,123.83,123.77,13.89028032]
[1769536095348,15.61662556,123.84,123.78,1.70694244]
[1769536095745,13.90968312,123.84,123.78,1.70694244]
[1769536096048,22.89172556,123.86,123.78,15.59722276]
[1769536096248,1.70694244,123.85,123.78,15.59722276]
[1769536096447,8.98214244,123.85,123.78,22.87642276]
[1769536096842,1.70694244,123.85,123.78,22.87642276]
[1769536097047,22.89122556,123.86,123.78,22.87642276]
[1769536097245,13.90968312,123.86,123.79,22.87592276]
[1769536097550,1.70694244,123.87,123.79,15.59722276]
[1769536097745,1.70694244,123.87,123.8,15.59722276]
[1769536097946,13.90968312,123.88,123.82,1.70694244]
[1769536098145,426.03944499,123.92,123.79,113.219]
[1769536098146,15.61662556,123.86,123.79,13.89028032]
[1769536098349,1.70694244,123.84,123.77,21.16998032]
[1769536099144,1.70694244,123.84,123.78,7.2793]
[1769536099449,1.70694244,123.84,123.78,21.16958032]
[1769536099647,13.90968312,123.85,123.79,7.2784]
[1769536099848,13.90968312,123.85,123.78,15.59722276]
[1769536100555,1.70694244,123.84,123.78,15.59722276]
[1769536100948,13.90968312,123.85,123.78,15.59722276]
[1769536100949,21.18488312,123.85,123.78,15.59722276]
[1769536101261,15.61662556,123.85,123.78,15.59722276]
[1769536101450,13.90968312,123.84,123.76,13.89028032]
[1769536101646,15.61662556,123.83,123.76,13.89028032]
[1769536102549,113.148,123.88,123.74,419.9043]
[1769536102550,15.40450384,123.85,123.78,13.89028032]
[1769536103055,15.40450384,123.85,123.78,21.16958032]
[1769536103453,113.1369,123.89,123.77,7.2799]
[1769536103454,22.68030384,123.84,123.77,7.2799]
[1769536104452,15.40450384,123.84,123.77,20.80522253]
[1769536104652,7.2752,123.85,123.78,22.51136497]
[1769536104949,20.90288578,123.85,123.78,22.51136497]
[1769536105150,20.90288578,123.85,123.78,15.23226497]
[1769536105557,22.61042822,123.84,123.77,7.2796]
[1769536106257,7.2763,123.83,123.76,15.23226497]
[1769536106955,15.33462822,123.84,123.77,20.80502253]
[1769536107150,15.33462822,123.84,123.78,13.52532253]
[1769536107352,7.2757,123.85,123.78,15.23226497]
[1769536107956,15.33462822,123.86,123.78,15.23226497]
[1769536107957,22.60952822,123.86,123.79,7.2785]
[1769536108847,15.33462822,123.89,123.82,15.23226497]
[1769536109050,13.62768578,123.89,123.82,15.23226497]
[1769536109252,15.33462822,123.89,123.82,15.23226497]
[1769536110061,22.60772822,123.89,123.82,22.50916497]
[1769536110256,15.33462822,123.88,123.81,1.70694244]
[1769536110459,15.33462822,123.88,123.8,1.70694244]
[1769536110659,15.33462822,123.88,123.8,15.23226497]
[1769536111656,13.62768578,123.88,123.81,1.70694244]
[1769536111956,20.90158578,123.88,123.81,8.98424244]
[1769536112161,20.90158578,123.88,123.81,22.50956497]
[1769536112363,13.62768578,123.87,123.81,22.50956497]
[1769536112562,20.90168578,123.87,123.81,15.23226497]
[1769536114065,13.62768578,123.87,123.81,22.50976497]
[1769536114267,13.62768578,123.87,123.81,15.23226497]
[1769536115363,13.62768578,123.87,123.81,22.50976497]
[1769536115564,13.62768578,123.87,123.81,8.98444244]
[1769536115761,13.62768578,123.87,123.81,7.2775]
[1769536116059,13.62768578,123.85,123.79,7.2782]
[1769536116273,13.62768578,123.85,123.79,8.98514244]
[1769536116456,13.62768578,123.85,123.79,15.23226497]
[1769536116767,13.62768578,123.85,123.79,22.51086497]
[1769536117068,13.62768578,123.85,123.79,15.23226497]
[1769536117568,13.62768578,123.85,123.79,13.52532253]
[1769536117961,20.90338578,123.85,123.79,13.52532253]
[1769536118556,20.90338578,123.85,123.78,22.51137213]
[1769536120763,13.62768578,123.84,123.78,22.51137213]
[1769536122371,13.62768578,123.83,123.78,1.7068496]
[1769536122565,13.62768578,123.83,123.76,15.23217213]
[1769536124364,1.7068496,123.84,123.74,1.7068496]
[1769536124365,13.62768578,123.8,123.74,1.7068496]
[1769536125069,13.62768578,123.8,123.73,20.80702253]
[1769536125271,13.62768578,123.8,123.73,22.51387213]
[1769536125572,1.7068496,123.82,123.7,15.23217213]
[1769536125573,13.62768578,123.77,123.7,15.23217213]
[1769536126271,13.62768578,123.79,123.72,15.23217213]
[1769536126671,1.7068496,123.81,123.74,22.51357213]
[1769536127167,15.33453538,123.81,123.74,22.51357213]
[1769536127368,13.62768578,123.81,123.74,22.51357213]
[1769536127562,22.61213538,123.81,123.74,13.52532253]
[1769536127767,22.61213538,123.81,123.74,15.23217213]
[1769536127969,22.61213538,123.81,123.74,13.52532253]
[1769536129971,13.62768578,123.8,123.74,20.80692253]
[1769536130971,13.62768578,123.79,123.73,1.7068496]
[1769536131175,15.33453538,123.79,123.72,7.2823]
[1769536131465,13.62768578,123.78,123.71,15.23217213]
[1769536132368,13.62768578,123.77,123.71,22.51547213]
[1769536133273,13.62768578,123.79,123.73,1.7068496]
[1769536134076,20.90638578,123.79,123.73,1.7068496]
[1769536134574,13.62768578,123.79,123.73,1.7068496]
[1769536134771,13.62768578,123.79,123.73,22.73584075]
[1769536135077,13.6876673,123.81,123.75,15.45364075]
[1769536135374,239.08,123.85,123.79,1.7068496]
[1769536135375,20.9633673,123.85,123.79,1.7068496]
[1769536135568,13.6876673,123.85,123.79,1.7068496]
[1769536136173,13.6876673,123.85,123.81,1.7068496]
[1769536137076,13.6876673,123.85,123.79,1.7068496]
[1769536137671,20.9630673,123.85,123.79,1.7068496]
[1769536137976,13.6876673,123.84,123.77,1.7068496]
[1769536138373,20.9634673,123.84,123.77,8.9866496]
[1769536138573,13.6876673,123.87,123.79,15.45364075]
[1769536138874,7.275,123.86,123.79,15.45364075]
[1769536139069,13.6876673,123.85,123.79,1.7068496]
[1769536139675,20.9629673,123.85,123.79,1.7068496]
[1769536140180,13.6876673,123.85,123.79,1.7068496]
[1769536141382,20.9628673,123.85,123.79,1.7068496]
[1769536145476,20.9634673,123.84,123.79,1.7068496]
[1769536146888,13.6876673,123.84,123.79,1.7068496]
[1769536149298,13.6876673,123.86,123.79,22.73224075]
[1769536149490,13.6876673,123.86,123.79,15.45364075]
[1769536149792,13.6876673,123.86,123.79,1.7068496]
[1769536150695,20.9627673,123.86,123.79,1.7068496]
[1769536150897,13.6876673,123.86,123.79,1.7068496]
[1769536151792,13.6876673,123.85,123.79,8.9852496]
[1769536151989,13.6876673,123.87,123.81,1.7068496]
[1769536152297,335.67321495,123.89,123.83,1.7068496]
[1769536153293,20.9610673,123.89,123.83,1.7068496]
[1769536155097,1.7068496,123.91,123.82,7.2769]
[1769536155098,20.9612673,123.88,123.82,1.7068496]
[1769536155493,20.9612673,123.88,123.82,8.9837496]
[1769536156795,13.6876673,123.88,123.82,8.9837496]
[1769536157194,13.6876673,123.88,123.83,1.7068496]
[1769536157904,20.9610673,123.88,123.83,1.7068496]
[1769536161904,20.9610673,123.88,123.84,1.7068496]
[1769536162704,20.9610673,123.88,123.83,1.7068496]
[1769536163403,13.76080963,123.91,123.85,14.32918704]
[1769536163594,13.76080963,123.91,123.83,12.62233744]
[1769536163797,13.76080963,123.91,123.85,1.7068496]
[1769536164000,15.46765923,123.9,123.83,1.7068496]
[1769536164498,15.46765923,123.9,123.82,1.7068496]
[1769536165200,13.22922794,123.86,123.81,1.7068496]
[1769536167303,13.22922794,123.88,123.81,1.7068496]
[1769536167604,13.22922794,123.88,123.82,1.7068496]
[1769536167802,13.22922794,123.86,123.77,12.41544747]
[1769536168006,14.93607754,123.86,123.78,1.7068496]
[1769536168498,22.21117754,123.86,123.78,1.7068496]
[1769536168695,22.21117754,123.86,123.78,14.12229707]
[1769536168907,13.22922794,123.85,123.78,14.12229707]
[1769536169907,13.22922794,123.85,123.78,21.40159707]
[1769536170603,20.50432794,123.86,123.79,12.41544747]
[1769536171609,13.22922794,123.86,123.79,19.69404747]
[1769536171810,13.22922794,123.86,123.8,14.12229707]
[1769536172497,13.22922794,123.86,123.8,12.41544747]
[1769536172698,14.93607754,123.86,123.79,1.7068496]
[1769536174010,22.21067754,123.86,123.79,1.7068496]
[1769536174207,13.22922794,123.85,123.79,1.7068496]
[1769536176507,13.22922794,123.85,123.78,19.69414747]
[1769536176908,14.93607754,123.87,123.8,12.41544747]
[1769536177409,14.93607754,123.87,123.81,7.2773]
[1769536178114,14.93607754,123.87,123.8,12.41544747]
[1769536179713,14.93557769,123.87,123.8,14.12179722]
[1769536179910,14.93557769,123.87,123.8,21.39959722]
[1769536181116,13.22922794,123.87,123.8,21.39959722]
[1769536181312,13.22922794,123.87,123.81,7.2774]
[1769536181714,364.8799,123.91,123.78,14.12179722]
[1769536181715,14.93557769,123.85,123.78,14.12179722]
[1769536182411,13.22922794,123.82,123.77,7.2797]
[1769536184520,7.16496635,123.82,123.78,5.71315646]
[1769536184719,7.16496635,123.82,123.79,5.71315646]
[1769536184920,7.16496635,123.82,123.8,5.71315646]
[1769536185121,7.16496635,123.82,123.81,5.71315646]
[1769536185314,7.16496635,123.82,123.77,7.2797]
[1769536185520,1.70634975,123.83,123.77,7.2797]
[1769536186016,1.70634975,123.84,123.77,7.2797]
[1769536186317,1.70634975,123.86,123.79,12.41544747]
[1769536186622,14.93557769,123.86,123.79,12.41544747]
[1769536187214,8.98094975,123.86,123.79,19.69394747]
[1769536187419,13.22922794,123.85,123.79,19.69394747]
[1769536189014,13.22922794,123.85,123.79,12.41544747]
[1769536189218,8.98094975,123.86,123.79,12.41544747]
[1769536189419,13.22922794,123.87,123.8,14.12179722]
[1769536190717,13.22922794,123.87,123.8,1.70634975]
[1769536190919,13.22922794,123.85,123.79,7.2786]
[1769536191115,13.22922794,123.85,123.79,19.69404747]
[1769536191318,8.98094975,123.86,123.8,12.41544747]
[1769536191830,13.22922794,123.85,123.79,7.2786]
[1769536192731,13.22922794,123.85,123.78,21.40109722]
[1769536193924,7.2758,123.84,123.76,324.2401]
[1769536194129,13.22922794,123.83,123.77,14.12179722]
[1769536194330,13.08924331,123.85,123.77,14.12179722]
[1769536194928,20.36494331,123.85,123.77,21.40149722]
[1769536195131,13.08924331,123.83,123.75,14.80371037]
[1769536195732,14.79559306,123.83,123.75,14.80371037]
[1769536195930,22.07209306,123.83,123.75,22.08431037]
[1769536197727,13.08924331,123.8,123.74,318.48]
[1769536197930,13.08924331,123.78,123.73,1.70634975]
[1769536198937,13.08924331,123.78,123.71,14.80371037]
[1769536200243,13.08924331,123.8,123.73,14.80371037]
[1769536200537,13.08924331,123.8,123.75,1.70634975]
[1769536200731,13.08924331,123.79,123.73,14.80371037]
[1769536201129,13.08924331,123.79,123.73,1.70634975]
[1769536206046,13.08924331,123.79,123.72,20.38006062]
[1769536206251,13.08924331,123.79,123.73,1.70634975]
[1769536208554,13.08924331,123.78,123.73,1.70634975]
[1769536209056,13.08924331,123.77,123.7,1.70634975]
[1769536210152,13.08924331,123.76,123.7,1.70634975]